[Event "Late-Titled-Tuesday-Blitz-January-16-2024"]
[Site "Chess.com"]
[Date "2024.01.16"]
[Round "4"]
[White "MightyGMpretender"]
[Black "StellarChess"]
[Result "1-0"]
[WhiteElo "2823"]
[BlackElo "2582"]
[TimeControl "180+1"]
[EndTime "14:37:26 PST"]
[Termination "MightyGMpretender won by resignation"]

1. e4 {[%clk 0:03:00.9]} 1... Nc6 {[%clk 0:02:56]} 2. Nf3 {[%clk 0:03:00.5]}
2... e5 {[%clk 0:02:55.7]} 3. Bb5 {[%clk 0:02:59.2]} 3... Nf6 {[%clk 0:02:53.5]}
4. d3 {[%clk 0:02:57.9]} 4... d6 {[%clk 0:02:48.6]} 5. O-O {[%clk 0:02:49.1]}
5... Bd7 {[%clk 0:02:45.9]} 6. c4 {[%clk 0:02:37.5]} 6... a6 {[%clk 0:02:41.3]}
7. Bxc6 {[%clk 0:02:37.1]} 7... Bxc6 {[%clk 0:02:34.1]} 8. Nc3 {[%clk
0:02:37.8]} 8... Be7 {[%clk 0:02:34.2]} 9. Re1 {[%clk 0:02:37.4]} 9... O-O
{[%clk 0:02:33.7]} 10. d4 {[%clk 0:02:37.9]} 10... exd4 {[%clk 0:02:29.6]} 11.
Nxd4 {[%clk 0:02:37.9]} 11... Bd7 {[%clk 0:02:30.2]} 12. Bf4 {[%clk 0:02:35.1]}
12... Re8 {[%clk 0:02:30.4]} 13. h3 {[%clk 0:02:27.4]} 13... Be6 {[%clk
0:02:26]} 14. Nxe6 {[%clk 0:02:05.4]} 14... fxe6 {[%clk 0:02:26.9]} 15. e5
{[%clk 0:02:06.1]} 15... dxe5 {[%clk 0:02:23.2]} 16. Bxe5 {[%clk 0:02:06.8]}
16... Qxd1 {[%clk 0:02:13.5]} 17. Raxd1 {[%clk 0:02:07.3]} 17... Rac8 {[%clk
0:02:14.3]} 18. Bxf6 {[%clk 0:01:52.5]} 18... Bxf6 {[%clk 0:02:14.6]} 19. Rd7
{[%clk 0:01:52.4]} 19... Kf8 {[%clk 0:01:41.7]} 20. Ne4 {[%clk 0:01:51.7]} 20...
Bxb2 {[%clk 0:01:31]} 21. Rb1 {[%clk 0:01:50.2]} 21... Be5 {[%clk 0:01:29]} 22.
Rxb7 {[%clk 0:01:49.7]} 22... Rb8 {[%clk 0:01:23.7]} 23. Rb3 {[%clk 0:01:41.2]}
23... Rb6 {[%clk 0:01:12]} 24. g3 {[%clk 0:01:34.4]} 24... Re7 {[%clk
0:01:05.4]} 25. Rd8+ {[%clk 0:01:28.6]} 25... Re8 {[%clk 0:01:02.5]} 26. Rdd3
{[%clk 0:01:24.1]} 26... Reb8 {[%clk 0:00:59.9]} 27. Nc5 {[%clk 0:01:22.2]}
27... Ke8 {[%clk 0:00:53.5]} 28. Nxe6 {[%clk 0:01:18.8]} 28... Rxb3 {[%clk
0:00:46.1]} 29. axb3 {[%clk 0:01:17.1]} 29... Ke7 {[%clk 0:00:40.4]} 30. Nc5
{[%clk 0:01:14.3]} 30... a5 {[%clk 0:00:32.9]} 31. Re3 {[%clk 0:01:14.3]} 31...
Kd6 {[%clk 0:00:32.8]} 32. Rxe5 {[%clk 0:01:14.6]} 32... Kxe5 {[%clk 0:00:30.7]}
33. Nd7+ {[%clk 0:01:14.5]} 33... Kd4 {[%clk 0:00:31.6]} 34. Nxb8 {[%clk
0:01:14.5]} 34... Kc3 {[%clk 0:00:32.2]} 35. Nc6 {[%clk 0:01:08.6]} 35... Kxb3
{[%clk 0:00:32.2]} 36. Nxa5+ {[%clk 0:01:09.2]} 36... Kb4 {[%clk 0:00:33.1]} 37.
Nc6+ {[%clk 0:01:07]} 37... Kxc4 {[%clk 0:00:33.5]} 38. Kf1 {[%clk 0:01:07.5]}
38... Kd3 {[%clk 0:00:32.4]} 39. Ke1 {[%clk 0:01:07.4]} 39... h5 {[%clk
0:00:32.5]} 40. h4 {[%clk 0:01:07.1]} 40... Ke4 {[%clk 0:00:30.6]} 41. Ke2
{[%clk 0:01:07.5]} 41... Kd5 {[%clk 0:00:30.1]} 42. Ne7+ {[%clk 0:01:01.6]}
42... Ke6 {[%clk 0:00:29.1]} 43. Ng6 {[%clk 0:01:02.3]} 43... Kf5 {[%clk
0:00:27.6]} 44. Nf4 {[%clk 0:01:01.9]} 44... g6 {[%clk 0:00:26.1]} 45. Nd3
{[%clk 0:00:59.1]} 45... Ke4 {[%clk 0:00:25.2]} 46. Nc5+ {[%clk 0:00:58.7]}
46... Kd5 {[%clk 0:00:24.6]} 47. Nd7 {[%clk 0:00:58.9]} 47... Ke6 {[%clk
0:00:23.4]} 48. Nf8+ {[%clk 0:00:57.1]} 48... Kf7 {[%clk 0:00:23.3]} 49. Nxg6
{[%clk 0:00:57.4]} 49... Kxg6 {[%clk 0:00:23.7]} 50. f3 {[%clk 0:00:56.3]} 50...
Kf5 {[%clk 0:00:22.8]} 51. Kd3 {[%clk 0:00:56.1]} 51... Ke5 {[%clk 0:00:23]} 52.
g4 {[%clk 0:00:56]} 52... hxg4 {[%clk 0:00:20.6]} 53. fxg4 {[%clk 0:00:56.9]}
53... Kf4 {[%clk 0:00:20.9]} 54. g5 {[%clk 0:00:57.3]} 54... Kf5 {[%clk
0:00:21.1]} 55. Kc4 {[%clk 0:00:57.9]} 55... Kg6 {[%clk 0:00:21.1]} 56. Kc5
{[%clk 0:00:58.5]} 56... Kh5 {[%clk 0:00:21.6]} 57. Kc6 {[%clk 0:00:59.1]} 57...
Kxh4 {[%clk 0:00:22.5]} 58. g6 {[%clk 0:00:59.5]} 1-0

[Event "Late-Titled-Tuesday-Blitz-January-16-2024"]
[Site "Chess.com"]
[Date "2024.01.16"]
[Round "4"]
[White "Njal28"]
[Black "AradNazari"]
[Result "1-0"]
[WhiteElo "3021"]
[BlackElo "2626"]
[TimeControl "180+1"]
[EndTime "14:37:28 PST"]
[Termination "Njal28 won by resignation"]

1. d4 {[%clk 0:03:00.9]} 1... b5 {[%clk 0:02:58.2]} 2. e4 {[%clk 0:03:00.7]}
2... a6 {[%clk 0:02:57.3]} 3. Bd3 {[%clk 0:02:59.3]} 3... e6 {[%clk 0:02:52.6]}
4. Nf3 {[%clk 0:02:59]} 4... c5 {[%clk 0:02:53.1]} 5. c3 {[%clk 0:02:52.3]} 5...
Bb7 {[%clk 0:02:50.2]} 6. O-O {[%clk 0:02:52.4]} 6... Nf6 {[%clk 0:02:40.9]} 7.
Re1 {[%clk 0:02:51.7]} 7... d5 {[%clk 0:02:38.7]} 8. e5 {[%clk 0:02:47.3]} 8...
Nfd7 {[%clk 0:02:38.2]} 9. Ng5 {[%clk 0:02:44.1]} 9... g6 {[%clk 0:02:13.1]} 10.
Qg4 {[%clk 0:02:41.1]} 10... Nc6 {[%clk 0:02:02]} 11. Nxe6 {[%clk 0:02:37.9]}
11... Qb6 {[%clk 0:01:42.1]} 12. Nxf8 {[%clk 0:02:23.8]} 12... Nxf8 {[%clk
0:01:43]} 13. Bg5 {[%clk 0:01:44.9]} 13... h5 {[%clk 0:01:32.5]} 14. Qh4 {[%clk
0:01:28.1]} 14... cxd4 {[%clk 0:01:32]} 15. Bf6 {[%clk 0:01:14]} 15... Rg8
{[%clk 0:01:32]} 16. Nd2 {[%clk 0:01:14.4]} 16... Ne6 {[%clk 0:01:25.2]} 17. Nf3
{[%clk 0:01:12.3]} 17... dxc3 {[%clk 0:01:12.2]} 18. bxc3 {[%clk 0:01:13.2]}
18... d4 {[%clk 0:01:11]} 19. c4 {[%clk 0:01:10.3]} 19... Nb4 {[%clk 0:01:06.8]}
20. Be4 {[%clk 0:01:09.5]} 20... bxc4 {[%clk 0:00:53.5]} 21. Rab1 {[%clk
0:01:09.5]} 21... Rb8 {[%clk 0:00:15.8]} 22. a3 {[%clk 0:01:07.7]} 22... a5
{[%clk 0:00:15.2]} 23. axb4 {[%clk 0:01:08.2]} 23... axb4 {[%clk 0:00:16]} 24.
Bxb7 {[%clk 0:01:07.2]} 24... Rxb7 {[%clk 0:00:16.9]} 25. Ra1 {[%clk 0:01:07.6]}
25... b3 {[%clk 0:00:12.4]} 26. Qe4 {[%clk 0:00:29.2]} 26... b2 {[%clk
0:00:06.3]} 27. Ra8+ {[%clk 0:00:29.7]} 27... Kd7 {[%clk 0:00:06.7]} 28. Qd5+
{[%clk 0:00:21.1]} 28... Kc7 {[%clk 0:00:07]} 29. Rxg8 {[%clk 0:00:21.8]} 29...
b1=Q {[%clk 0:00:07.1]} 30. Bd8+ {[%clk 0:00:22.5]} 30... Nxd8 {[%clk
0:00:05.1]} 31. Qxd8+ {[%clk 0:00:22.2]} 31... Kc6 {[%clk 0:00:05.8]} 32. Qd6+
{[%clk 0:00:21]} 1-0

[Event "Late-Titled-Tuesday-Blitz-January-16-2024"]
[Site "Chess.com"]
[Date "2024.01.16"]
[Round "4"]
[White "A-Fier"]
[Black "ozates"]
[Result "0-1"]
[WhiteElo "2752"]
[BlackElo "2585"]
[TimeControl "180+1"]
[EndTime "14:37:31 PST"]
[Termination "ozates won by resignation"]

1. d4 {[%clk 0:03:00.9]} 1... Nf6 {[%clk 0:02:59.8]} 2. Bg5 {[%clk 0:03:01.1]}
2... Ne4 {[%clk 0:02:59.5]} 3. h4 {[%clk 0:03:01.5]} 3... c5 {[%clk 0:02:52.9]}
4. dxc5 {[%clk 0:03:02.4]} 4... Nxc5 {[%clk 0:02:46.8]} 5. Nc3 {[%clk
0:03:01.7]} 5... Nc6 {[%clk 0:02:45.5]} 6. e4 {[%clk 0:03:01.9]} 6... d6 {[%clk
0:02:42.7]} 7. Qd2 {[%clk 0:03:01.5]} 7... Be6 {[%clk 0:02:37.9]} 8. O-O-O
{[%clk 0:02:59.7]} 8... Rc8 {[%clk 0:02:37.3]} 9. f3 {[%clk 0:02:57.4]} 9... a6
{[%clk 0:02:37.2]} 10. Nge2 {[%clk 0:02:57.7]} 10... Qa5 {[%clk 0:02:36.8]} 11.
a3 {[%clk 0:02:57.3]} 11... b5 {[%clk 0:02:31.9]} 12. Nd5 {[%clk 0:02:55.3]}
12... Qd8 {[%clk 0:01:39.5]} 13. Kb1 {[%clk 0:02:48.8]} 13... Ne5 {[%clk
0:01:38.1]} 14. Nef4 {[%clk 0:02:48.1]} 14... h6 {[%clk 0:01:24.3]} 15. Nxe6
{[%clk 0:02:47.1]} 15... fxe6 {[%clk 0:01:22.8]} 16. Bf4 {[%clk 0:02:37.8]}
16... exd5 {[%clk 0:01:22.8]} 17. exd5 {[%clk 0:02:38.7]} 17... g6 {[%clk
0:01:19]} 18. h5 {[%clk 0:02:36.2]} 18... g5 {[%clk 0:01:18.2]} 19. Bxe5 {[%clk
0:02:35.7]} 19... dxe5 {[%clk 0:01:18.5]} 20. g3 {[%clk 0:02:32]} 20... Qd6
{[%clk 0:01:15.3]} 21. Bh3 {[%clk 0:02:31.9]} 21... Rc7 {[%clk 0:01:15.5]} 22.
Bf5 {[%clk 0:02:31.6]} 22... Bg7 {[%clk 0:01:14.3]} 23. Bg6+ {[%clk 0:02:32.1]}
23... Kd8 {[%clk 0:01:13.8]} 24. Rhe1 {[%clk 0:02:32.9]} 24... e4 {[%clk
0:01:07]} 25. fxe4 {[%clk 0:02:28.1]} 25... Be5 {[%clk 0:01:04.4]} 26. c3 {[%clk
0:02:18.3]} 26... Kc8 {[%clk 0:01:02.7]} 27. Re3 {[%clk 0:02:18.3]} 27... Kb7
{[%clk 0:01:00.5]} 28. Rf3 {[%clk 0:02:16.4]} 28... Na4 {[%clk 0:00:58.6]} 29.
g4 {[%clk 0:02:13.6]} 29... a5 {[%clk 0:00:48.9]} 30. Rc1 {[%clk 0:02:13.7]}
30... Ka6 {[%clk 0:00:42.5]} 31. Qe2 {[%clk 0:02:13.5]} 31... Rc4 {[%clk
0:00:36.5]} 32. Rd3 {[%clk 0:01:56.4]} 32... Rhc8 {[%clk 0:00:35.3]} 33. Kc2
{[%clk 0:01:53.9]} 33... Kb7 {[%clk 0:00:31.2]} 34. Kd1 {[%clk 0:01:54]} 34...
b4 {[%clk 0:00:29.2]} 35. axb4 {[%clk 0:01:54]} 35... axb4 {[%clk 0:00:29.6]}
36. Ke1 {[%clk 0:01:52.4]} 36... Qb6 {[%clk 0:00:27.2]} 37. Kf1 {[%clk 0:01:52]}
37... Rf8+ {[%clk 0:00:24.1]} 38. Bf5 {[%clk 0:01:52]} 38... bxc3 {[%clk
0:00:22.4]} 39. bxc3 {[%clk 0:01:52.4]} 39... Nxc3 {[%clk 0:00:23]} 40. Qe3
{[%clk 0:01:39.9]} 40... Qxe3 {[%clk 0:00:20.7]} 41. Rxe3 {[%clk 0:01:40.3]}
41... Ra8 {[%clk 0:00:19.7]} 42. Rf3 {[%clk 0:01:38.7]} 42... Ra2 {[%clk
0:00:19.6]} 43. Be6 {[%clk 0:01:37.1]} 43... Rxe4 {[%clk 0:00:17.7]} 44. d6
{[%clk 0:01:36.2]} 44... exd6 {[%clk 0:00:15.6]} 45. Bxa2 {[%clk 0:01:36.3]}
45... Nxa2 {[%clk 0:00:13.6]} 46. Rb3+ {[%clk 0:01:34.2]} 46... Rb4 {[%clk
0:00:07.6]} 47. Rxb4+ {[%clk 0:01:30.4]} 47... Nxb4 {[%clk 0:00:08.5]} 48. Rb1
{[%clk 0:01:31]} 48... Bc3 {[%clk 0:00:08.7]} 49. Ke2 {[%clk 0:01:31.5]} 49...
Kc6 {[%clk 0:00:08.2]} 50. Ke3 {[%clk 0:01:31.3]} 50... Kc5 {[%clk 0:00:08]} 51.
Ke4 {[%clk 0:01:31.3]} 51... d5+ {[%clk 0:00:08]} 52. Kf5 {[%clk 0:01:31.9]}
52... d4 {[%clk 0:00:05.5]} 53. Kg6 {[%clk 0:01:32.6]} 53... d3 {[%clk
0:00:05.8]} 54. Kxh6 {[%clk 0:01:33.3]} 54... Bd2 {[%clk 0:00:05]} 55. Kg6
{[%clk 0:01:32.4]} 55... Nc6 {[%clk 0:00:04.2]} 56. Rd1 {[%clk 0:01:31.6]} 56...
Bf4 {[%clk 0:00:02.6]} 57. h6 {[%clk 0:01:31.8]} 57... Ne5+ {[%clk 0:00:03]} 58.
Kg7 {[%clk 0:01:32.4]} 58... Nxg4 {[%clk 0:00:02.7]} 59. h7 {[%clk 0:01:32.7]}
59... Be5+ {[%clk 0:00:03.3]} 60. Kg6 {[%clk 0:01:32.8]} 60... Kd4 {[%clk
0:00:03.5]} 61. Kf5 {[%clk 0:01:32.6]} 61... Ne3+ {[%clk 0:00:03.9]} 62. Kxg5
{[%clk 0:01:33.1]} 62... Nxd1 {[%clk 0:00:04.8]} 0-1

[Event "Late-Titled-Tuesday-Blitz-January-16-2024"]
[Site "Chess.com"]
[Date "2024.01.16"]
[Round "4"]
[White "Rutricks"]
[Black "Perecke"]
[Result "1-0"]
[WhiteElo "2723"]
[BlackElo "2549"]
[TimeControl "180+1"]
[EndTime "14:37:33 PST"]
[Termination "Rutricks won on time"]

1. d4 {[%clk 0:02:55.2]} 1... Nf6 {[%clk 0:02:59.7]} 2. Nc3 {[%clk 0:02:55.7]}
2... d5 {[%clk 0:02:54.8]} 3. Bf4 {[%clk 0:02:56]} 3... g6 {[%clk 0:02:51.3]} 4.
Qd2 {[%clk 0:02:43.7]} 4... Bg7 {[%clk 0:02:47.9]} 5. h4 {[%clk 0:02:43.6]} 5...
h5 {[%clk 0:02:34.2]} 6. O-O-O {[%clk 0:02:43.2]} 6... a6 {[%clk 0:02:27.5]} 7.
Nh3 {[%clk 0:02:43.2]} 7... b5 {[%clk 0:02:27.5]} 8. f3 {[%clk 0:02:42]} 8...
Nbd7 {[%clk 0:02:07.1]} 9. Ng5 {[%clk 0:02:41.9]} 9... Nb6 {[%clk 0:02:02.3]}
10. e4 {[%clk 0:02:42.3]} 10... O-O {[%clk 0:01:49.7]} 11. e5 {[%clk 0:02:34.8]}
11... Nh7 {[%clk 0:01:42.7]} 12. g4 {[%clk 0:02:35.3]} 12... hxg4 {[%clk
0:01:39.8]} 13. h5 {[%clk 0:02:34]} 13... Nxg5 {[%clk 0:01:31.6]} 14. Bxg5
{[%clk 0:02:34.4]} 14... b4 {[%clk 0:01:30.4]} 15. Nb1 {[%clk 0:01:45.6]} 15...
Bf5 {[%clk 0:01:12.6]} 16. h6 {[%clk 0:01:43.9]} 16... f6 {[%clk 0:00:53.6]} 17.
hxg7 {[%clk 0:01:41.8]} 17... Re8 {[%clk 0:00:53.8]} 18. Qh2 {[%clk 0:00:44.1]}
18... Kf7 {[%clk 0:00:44]} 19. Bf4 {[%clk 0:00:34.4]} 19... Rc8 {[%clk
0:00:13.7]} 20. Bxa6 {[%clk 0:00:32.6]} 20... Ra8 {[%clk 0:00:11.6]} 21. Bb5
{[%clk 0:00:30.5]} 21... c6 {[%clk 0:00:07]} 22. Bxc6 {[%clk 0:00:28.9]} 22...
Rg8 {[%clk 0:00:07.6]} 23. exf6 {[%clk 0:00:24.1]} 23... Rc8 {[%clk 0:00:04.1]}
24. Rhe1 {[%clk 0:00:20.1]} 24... exf6 {[%clk 0:00:02.9]} 25. fxg4 {[%clk
0:00:10.4]} 25... Bxg4 {[%clk 0:00:02]} 26. Bd6 {[%clk 0:00:04.7]} 1-0

[Event "Late-Titled-Tuesday-Blitz-January-16-2024"]
[Site "Chess.com"]
[Date "2024.01.16"]
[Round "4"]
[White "AntonSmirnov"]
[Black "Oleksandr_Bortnyk"]
[Result "1-0"]
[WhiteElo "2937"]
[BlackElo "3100"]
[TimeControl "180+1"]
[EndTime "14:37:35 PST"]
[Termination "AntonSmirnov won by resignation"]

1. e4 {[%clk 0:02:43]} 1... Nf6 {[%clk 0:02:59.6]} 2. e5 {[%clk 0:02:43]} 2...
Nd5 {[%clk 0:03:00]} 3. Nc3 {[%clk 0:02:43.1]} 3... Nxc3 {[%clk 0:02:59.6]} 4.
dxc3 {[%clk 0:02:44]} 4... d6 {[%clk 0:03:00.1]} 5. Nf3 {[%clk 0:02:43.7]} 5...
Nc6 {[%clk 0:03:00.4]} 6. exd6 {[%clk 0:02:41.7]} 6... cxd6 {[%clk 0:03:00]} 7.
Bd3 {[%clk 0:02:41.5]} 7... g6 {[%clk 0:03:00.1]} 8. Qe2 {[%clk 0:02:41.6]} 8...
Bg7 {[%clk 0:02:59.8]} 9. Bd2 {[%clk 0:02:41.1]} 9... Qb6 {[%clk 0:02:57.5]} 10.
O-O-O {[%clk 0:02:40.2]} 10... e5 {[%clk 0:02:53.3]} 11. h4 {[%clk 0:02:39]}
11... Be6 {[%clk 0:02:53.4]} 12. h5 {[%clk 0:02:33.7]} 12... Bxa2 {[%clk
0:02:43.4]} 13. hxg6 {[%clk 0:02:28.9]} 13... hxg6 {[%clk 0:02:44.3]} 14. Rxh8+
{[%clk 0:02:28.9]} 14... Bxh8 {[%clk 0:02:45.2]} 15. Rh1 {[%clk 0:02:11.6]}
15... O-O-O {[%clk 0:02:42.5]} 16. b3 {[%clk 0:02:11.5]} 16... f5 {[%clk
0:02:32.2]} 17. Ng5 {[%clk 0:02:05]} 17... e4 {[%clk 0:02:09.5]} 18. Bb5 {[%clk
0:02:01.8]} 18... Bf6 {[%clk 0:01:27.3]} 19. Ne6 {[%clk 0:01:54]} 19... Re8
{[%clk 0:01:22.9]} 20. Qc4 {[%clk 0:01:48.5]} 20... Kb8 {[%clk 0:01:06.1]} 21.
Rh7 {[%clk 0:01:20.8]} 21... Rc8 {[%clk 0:00:49.2]} 22. Qd5 {[%clk 0:01:02.1]}
22... Ne7 {[%clk 0:00:31.3]} 23. Rxe7 {[%clk 0:00:52.1]} 23... Bxe7 {[%clk
0:00:32.2]} 24. Nd4 {[%clk 0:00:48.9]} 24... Qc5 {[%clk 0:00:15.5]} 25. Qe6
{[%clk 0:00:39.5]} 25... Qa3+ {[%clk 0:00:13.3]} 26. Kd1 {[%clk 0:00:39.5]}
26... Bf8 {[%clk 0:00:05.1]} 27. Bd7 {[%clk 0:00:39.4]} 27... Rd8 {[%clk
0:00:05.1]} 28. Qf6 {[%clk 0:00:38.9]} 28... Qa5 {[%clk 0:00:04.4]} 29. Ne6
{[%clk 0:00:36.8]} 29... Rxd7 {[%clk 0:00:01.3]} 30. Qxf8+ {[%clk 0:00:36.2]}
30... Rd8 {[%clk 0:00:02.2]} 31. Qxd8+ {[%clk 0:00:34.8]} 31... Qxd8 {[%clk
0:00:01.8]} 32. Nxd8 {[%clk 0:00:34.5]} 32... a5 {[%clk 0:00:02.7]} 33. Kc1
{[%clk 0:00:32.7]} 33... Kc7 {[%clk 0:00:02.4]} 34. Ne6+ {[%clk 0:00:31.2]}
34... Kc6 {[%clk 0:00:02]} 35. Kb2 {[%clk 0:00:30.9]} 35... Bxb3 {[%clk
0:00:02.5]} 1-0

[Event "Late-Titled-Tuesday-Blitz-January-16-2024"]
[Site "Chess.com"]
[Date "2024.01.16"]
[Round "4"]
[White "jefferyx"]
[Black "rezamahdavi2008"]
[Result "0-1"]
[WhiteElo "2991"]
[BlackElo "2867"]
[TimeControl "180+1"]
[EndTime "14:37:36 PST"]
[Termination "rezamahdavi2008 won by resignation"]

1. d4 {[%clk 0:03:00.9]} 1... Nf6 {[%clk 0:03:00]} 2. c4 {[%clk 0:03:01.6]} 2...
e6 {[%clk 0:02:59.2]} 3. Nf3 {[%clk 0:03:01.7]} 3... d5 {[%clk 0:02:59.4]} 4.
Nc3 {[%clk 0:03:02.2]} 4... c6 {[%clk 0:02:58.9]} 5. Bg5 {[%clk 0:02:57.5]} 5...
dxc4 {[%clk 0:02:53.4]} 6. a4 {[%clk 0:02:53.1]} 6... b5 {[%clk 0:02:45.7]} 7.
axb5 {[%clk 0:02:52.4]} 7... cxb5 {[%clk 0:02:44.5]} 8. Nxb5 {[%clk 0:02:50.2]}
8... Qb6 {[%clk 0:02:45.2]} 9. Na3 {[%clk 0:02:49.9]} 9... Bxa3 {[%clk
0:02:38.3]} 10. Qa4+ {[%clk 0:02:45.6]} 10... Nc6 {[%clk 0:02:38.7]} 11. Qxa3
{[%clk 0:02:46.5]} 11... Ne4 {[%clk 0:02:39.3]} 12. e3 {[%clk 0:02:40.2]} 12...
f6 {[%clk 0:02:39.3]} 13. Bf4 {[%clk 0:02:38.6]} 13... Nb4 {[%clk 0:02:40]} 14.
Rc1 {[%clk 0:02:35.4]} 14... Ba6 {[%clk 0:02:40.3]} 15. Be2 {[%clk 0:01:41]}
15... O-O {[%clk 0:02:22.3]} 16. O-O {[%clk 0:01:39.9]} 16... Rfc8 {[%clk
0:02:19.5]} 17. Ra1 {[%clk 0:01:21.3]} 17... Bb7 {[%clk 0:02:05.8]} 18. Rfc1
{[%clk 0:01:20.7]} 18... Bd5 {[%clk 0:02:04.1]} 19. Ne1 {[%clk 0:01:01.6]} 19...
a5 {[%clk 0:01:55.9]} 20. f3 {[%clk 0:01:01.6]} 20... Nd2 {[%clk 0:01:50.7]} 21.
e4 {[%clk 0:01:01.8]} 21... Nb3 {[%clk 0:01:49.9]} 22. Be3 {[%clk 0:00:56.6]}
22... Nxc1 {[%clk 0:01:32.1]} 23. Rxc1 {[%clk 0:00:56.4]} 23... Bb7 {[%clk
0:01:25.8]} 24. Bxc4 {[%clk 0:00:56.4]} 24... Ba6 {[%clk 0:01:23.5]} 25. b3
{[%clk 0:00:56.7]} 25... Kh8 {[%clk 0:01:14]} 26. Kf2 {[%clk 0:00:50.5]} 26...
Rc7 {[%clk 0:01:11.1]} 27. d5 {[%clk 0:00:49.9]} 27... Qd6 {[%clk 0:01:09.4]}
28. dxe6 {[%clk 0:00:39.2]} 28... Nd3+ {[%clk 0:00:56.2]} 29. Bxd3 {[%clk
0:00:38.2]} 29... Qxa3 {[%clk 0:00:56.6]} 30. Rxc7 {[%clk 0:00:38.8]} 30... Bxd3
{[%clk 0:00:56.9]} 31. Nxd3 {[%clk 0:00:39.6]} 31... Qd6 {[%clk 0:00:57.4]} 32.
Rd7 {[%clk 0:00:38]} 32... Qxe6 {[%clk 0:00:57.9]} 33. Nc5 {[%clk 0:00:38.9]}
33... Qc6 {[%clk 0:00:57.3]} 34. Bd4 {[%clk 0:00:36.5]} 34... h6 {[%clk
0:00:54.7]} 35. h4 {[%clk 0:00:36]} 35... Rc8 {[%clk 0:00:55.2]} 36. g4 {[%clk
0:00:34.1]} 36... Qb5 {[%clk 0:00:55.5]} 37. Rb7 {[%clk 0:00:33.8]} 37... Qc6
{[%clk 0:00:42]} 38. g5 {[%clk 0:00:32.4]} 38... Qd6 {[%clk 0:00:42]} 39. Rd7
{[%clk 0:00:26.9]} 39... Qh2+ {[%clk 0:00:42.3]} 40. Kf1 {[%clk 0:00:20.9]}
40... hxg5 {[%clk 0:00:31.5]} 41. hxg5 {[%clk 0:00:21.8]} 41... Qh1+ {[%clk
0:00:30.7]} 42. Ke2 {[%clk 0:00:21.9]} 42... Qg2+ {[%clk 0:00:30.2]} 43. Kd3
{[%clk 0:00:21.2]} 43... Qxg5 {[%clk 0:00:29.5]} 44. Ne6 {[%clk 0:00:19.2]}
44... Qb5+ {[%clk 0:00:29.6]} 0-1

[Event "Late-Titled-Tuesday-Blitz-January-16-2024"]
[Site "Chess.com"]
[Date "2024.01.16"]
[Round "4"]
[White "Durarbayli"]
[Black "MITerryble"]
[Result "0-1"]
[WhiteElo "2860"]
[BlackElo "3033"]
[TimeControl "180+1"]
[EndTime "14:37:37 PST"]
[Termination "MITerryble won by resignation"]

1. e4 {[%clk 0:03:00.9]} 1... e6 {[%clk 0:02:59.9]} 2. d4 {[%clk 0:03:00.8]}
2... d5 {[%clk 0:03:00.5]} 3. exd5 {[%clk 0:02:52.9]} 3... exd5 {[%clk
0:03:00.5]} 4. c4 {[%clk 0:02:53.6]} 4... Bb4+ {[%clk 0:02:59.9]} 5. Nc3 {[%clk
0:02:53.6]} 5... Ne7 {[%clk 0:03:00]} 6. Bd3 {[%clk 0:02:47.9]} 6... O-O {[%clk
0:02:55.9]} 7. Nf3 {[%clk 0:02:45.2]} 7... dxc4 {[%clk 0:02:55.5]} 8. Bxc4
{[%clk 0:02:46.1]} 8... Nbc6 {[%clk 0:02:55.2]} 9. h3 {[%clk 0:02:44]} 9... Nf5
{[%clk 0:02:52.4]} 10. Be3 {[%clk 0:02:29.6]} 10... Nd6 {[%clk 0:02:28.3]} 11.
Bb3 {[%clk 0:02:17.3]} 11... Na5 {[%clk 0:02:27.4]} 12. O-O {[%clk 0:02:14.2]}
12... Nxb3 {[%clk 0:02:26.6]} 13. Qxb3 {[%clk 0:02:15.1]} 13... Ba5 {[%clk
0:02:24.3]} 14. d5 {[%clk 0:02:10.2]} 14... Re8 {[%clk 0:02:20.4]} 15. Rac1
{[%clk 0:02:08.7]} 15... Bd7 {[%clk 0:02:09]} 16. Bg5 {[%clk 0:02:04.9]} 16...
f6 {[%clk 0:01:53.5]} 17. Bf4 {[%clk 0:02:01.9]} 17... Bb6 {[%clk 0:01:52]} 18.
Na4 {[%clk 0:01:40.8]} 18... Bxa4 {[%clk 0:01:49.7]} 19. Qxa4 {[%clk 0:01:41.7]}
19... Re4 {[%clk 0:01:48.2]} 20. Qb3 {[%clk 0:01:04.4]} 20... Rxf4 {[%clk
0:01:47.7]} 21. Rfe1 {[%clk 0:01:05.3]} 21... Qd7 {[%clk 0:01:16.6]} 22. Re6
{[%clk 0:01:05.1]} 22... Qa4 {[%clk 0:01:13.6]} 23. Qd3 {[%clk 0:00:59.2]} 23...
Qxa2 {[%clk 0:01:07.6]} 24. g3 {[%clk 0:00:44.8]} 24... Qxb2 {[%clk 0:01:02.8]}
25. Rf1 {[%clk 0:00:37.4]} 25... Rb4 {[%clk 0:00:55.4]} 26. Re7 {[%clk
0:00:21.7]} 26... Rb3 {[%clk 0:00:49.7]} 27. Qd1 {[%clk 0:00:21.9]} 27... Qc3
{[%clk 0:00:40.3]} 28. Nh2 {[%clk 0:00:11]} 28... Kf8 {[%clk 0:00:21.2]} 29. Re6
{[%clk 0:00:05.3]} 29... Qxg3+ {[%clk 0:00:18.1]} 30. Kh1 {[%clk 0:00:06]} 30...
Qd3 {[%clk 0:00:18.6]} 31. Qh5 {[%clk 0:00:05.3]} 31... Qf5 {[%clk 0:00:13.3]}
32. Qh4 {[%clk 0:00:05.6]} 32... Rxh3 {[%clk 0:00:12.9]} 0-1